[Event "November 21 Early 2023"]
[Site "https://www.chess.com"]
[Date "2023.11.21"]
[Round "7"]
[White "Ahmad, Khagan"]
[Black "Sonis, Francesco"]
[Result "1-0"]
[Board "44"]
[TimeControl "180+1"]
[WhiteFideId "13431552"]
[BlackFideId "895733"]
[WhiteElo "2160"]
[BlackElo "2435"]
[WhiteTeam "AZE"]
[BlackTeam "ITA"]
[WhiteClock "0:00:08"]
[BlackClock "0:01:26"]

1. Nf3 {[%clk 0:02:44]}  d5 {[%clk 0:02:33]} 2. d4 {[%clk 0:02:43]}  c6 {[%clk 0:02:34]} 3. c4 {[%clk 0:02:42]}  e6 {[%clk 0:02:34]} 4. e3 {[%clk 0:02:33]}  f5 {[%clk 0:02:32]} 5. Nc3 {[%clk 0:02:27]}  Nf6 {[%clk 0:02:23]} 6. Ne5 {[%clk 0:02:28]}  Bd6 {[%clk 0:02:16]} 7. f4 {[%clk 0:02:27]}  O-O {[%clk 0:02:13]} 8. Be2 {[%clk 0:02:27]}  b6 {[%clk 0:02:11]} 9. O-O {[%clk 0:02:25]}  Bb7 {[%clk 0:02:11]} 10. b3 {[%clk 0:02:19]}  Qe7 {[%clk 0:02:10]} 11. Bb2 {[%clk 0:02:15]}  Nbd7 {[%clk 0:02:05]} 12. Bf3 {[%clk 0:02:04]}  Ne4 {[%clk 0:02:05]} 13. Rc1 {[%clk 0:01:31]}  a6 {[%clk 0:02:03]} 14. cxd5 {[%clk 0:01:25]}  exd5 {[%clk 0:02:04]} 15. Nxe4 {[%clk 0:01:22]}  fxe4 {[%clk 0:02:03]} 16. Bg4 {[%clk 0:01:22]}  Nf6 {[%clk 0:02:04]} 17. Nxc6 {[%clk 0:01:20]}  Bxc6 {[%clk 0:02:04]} 18. Rxc6 {[%clk 0:01:21]}  Ba3 {[%clk 0:02:03]} 19. Bxa3 {[%clk 0:01:01]}  Qxa3 {[%clk 0:02:04]} 20. Be6+ {[%clk 0:00:59]}  Kh8 {[%clk 0:02:04]} 21. Qc2 {[%clk 0:00:58]}  b5 {[%clk 0:02:02]} 22. g4 {[%clk 0:00:57]}  h6 {[%clk 0:02:00]} 23. g5 {[%clk 0:00:56]}  hxg5 {[%clk 0:02:00]} 24. fxg5 {[%clk 0:00:57]}  Nh7 {[%clk 0:02:00]} 25. Rxf8+ {[%clk 0:00:54]}  Rxf8 {[%clk 0:02:01]} 26. g6 {[%clk 0:00:54]}  Ng5 {[%clk 0:02:01]} 27. Qd1 {[%clk 0:00:37]}  Nf3+ {[%clk 0:02:00]} 28. Kh1 {[%clk 0:00:33]}  Qe7 {[%clk 0:01:59]} 29. Qf1 {[%clk 0:00:25]}  Nh4 {[%clk 0:01:54]} 30. Qh3 {[%clk 0:00:19]}  Qf6 {[%clk 0:01:52]} 31. Bf7 {[%clk 0:00:19]}  Qf2 {[%clk 0:01:50]} 32. Rc1 {[%clk 0:00:17]}  Qf3+ {[%clk 0:01:45]} 33. Qxf3 {[%clk 0:00:17]}  exf3 {[%clk 0:01:40]} 34. Kg1 {[%clk 0:00:17]}  Nf5 {[%clk 0:01:38]} 35. Kf2 {[%clk 0:00:17]}  Nd6 {[%clk 0:01:38]} 36. Bxd5 {[%clk 0:00:17]}  Rf6 {[%clk 0:01:35]} 37. Rg1 {[%clk 0:00:14]}  b4 {[%clk 0:01:30]} 38. Rg5 {[%clk 0:00:14]}  Nf5 {[%clk 0:01:29]} 39. Rh5+ {[%clk 0:00:14]}  Nh6 {[%clk 0:01:29]} 40. Re5 {[%clk 0:00:15]}  Rf8 {[%clk 0:01:29]} 41. h3 {[%clk 0:00:13]}  a5 {[%clk 0:01:28]} 42. Bf7 {[%clk 0:00:10]}  a4 {[%clk 0:01:28]} 43. Re8 {[%clk 0:00:10]}  Rxe8 {[%clk 0:01:28]} 44. Bxe8 {[%clk 0:00:11]}  a3 {[%clk 0:01:29]} 45. d5 {[%clk 0:00:10]}  Nf5 {[%clk 0:01:29]} 46. Kxf3 {[%clk 0:00:10]}  Kg8 {[%clk 0:01:28]} 47. e4 {[%clk 0:00:09]}  Nd4+ {[%clk 0:01:28]} 48. Ke3 {[%clk 0:00:09]}  Nxb3 {[%clk 0:01:29]} 49. d6 {[%clk 0:00:08]}  Nc5 {[%clk 0:01:28]} 50. d7 {[%clk 0:00:08]}  Nb7 {[%clk 0:01:29]} 51. Kd4 {[%clk 0:00:07]}  Kf8 {[%clk 0:01:29]} 52. Kc4 {[%clk 0:00:05]}  Ke7 {[%clk 0:01:29]} 53. Kxb4 {[%clk 0:00:06]}  Nd6 {[%clk 0:01:29]} 54. e5 {[%clk 0:00:06]}  Ne4 {[%clk 0:01:27]} 55. Kxa3 {[%clk 0:00:06]}  Ng5 {[%clk 0:01:28]} 56. Kb4 {[%clk 0:00:06]}  Nxh3 {[%clk 0:01:28]} 57. a4 {[%clk 0:00:07]}  Nf4 {[%clk 0:01:28]} 58. a5 {[%clk 0:00:08]}  Nd3+ {[%clk 0:01:28]} 59. Kb5 {[%clk 0:00:08]}  Nxe5 {[%clk 0:01:26]} 60. a6 {[%clk 0:00:08]} 1-0

[Event "November 21 Early 2023"]
[Site "https://www.chess.com"]
[Date "2023.11.21"]
[Round "7"]
[White "Degenbaev, Aziz"]
[Black "Molina, Roberto Junio Brito"]
[Result "0-1"]
[Board "45"]
[TimeControl "180+1"]
[WhiteFideId "13802640"]
[BlackFideId "2109450"]
[WhiteElo "2083"]
[BlackElo "2389"]
[WhiteTeam "KGZ"]
[BlackTeam "BRA"]
[WhiteClock "0:00:00"]
[BlackClock "0:00:06"]

1. d4 {[%clk 0:03:00]}  d5 {[%clk 0:02:59]} 2. c4 {[%clk 0:03:00]}  c6 {[%clk 0:02:59]} 3. Nf3 {[%clk 0:03:00]}  Nf6 {[%clk 0:02:59]} 4. Nc3 {[%clk 0:03:00]}  dxc4 {[%clk 0:02:58]} 5. a4 {[%clk 0:02:59]}  Bf5 {[%clk 0:02:57]} 6. Ne5 {[%clk 0:02:59]}  e6 {[%clk 0:02:51]} 7. e3 {[%clk 0:02:49]}  Bb4 {[%clk 0:02:47]} 8. Bxc4 {[%clk 0:02:48]}  Nbd7 {[%clk 0:02:41]} 9. Nd3 {[%clk 0:02:47]}  Be7 {[%clk 0:02:33]} 10. Qe2 {[%clk 0:02:45]}  Ne4 {[%clk 0:02:29]} 11. O-O {[%clk 0:02:43]}  O-O {[%clk 0:02:27]} 12. Bb3 {[%clk 0:02:40]}  Nxc3 {[%clk 0:02:24]} 13. bxc3 {[%clk 0:02:41]}  Bxd3 {[%clk 0:02:21]} 14. Qxd3 {[%clk 0:02:39]}  Nc5 {[%clk 0:02:21]} 15. Qc2 {[%clk 0:02:38]}  Nxb3 {[%clk 0:02:21]} 16. Qxb3 {[%clk 0:02:39]}  b6 {[%clk 0:02:19]} 17. e4 {[%clk 0:02:39]}  c5 {[%clk 0:02:16]} 18. Be3 {[%clk 0:02:39]}  cxd4 {[%clk 0:02:15]} 19. cxd4 {[%clk 0:02:40]}  Qd7 {[%clk 0:02:11]} 20. Rfd1 {[%clk 0:02:38]}  Rfc8 {[%clk 0:02:03]} 21. Qb5 {[%clk 0:02:36]}  Qb7 {[%clk 0:01:39]} 22. d5 {[%clk 0:02:34]}  exd5 {[%clk 0:01:36]} 23. Rxd5 {[%clk 0:02:03]}  Bf8 {[%clk 0:01:28]} 24. a5 {[%clk 0:01:58]}  Qe7 {[%clk 0:01:13]} 25. Qd3 {[%clk 0:01:36]}  bxa5 {[%clk 0:01:11]} 26. Rdxa5 {[%clk 0:01:36]}  Rd8 {[%clk 0:00:54]} 27. Rd5 {[%clk 0:00:49]}  Rxd5 {[%clk 0:00:36]} 28. Qxd5 {[%clk 0:00:45]}  Rd8 {[%clk 0:00:34]} 29. Qc6 {[%clk 0:00:45]}  Rd6 {[%clk 0:00:28]} 30. Qa8 {[%clk 0:00:43]}  Rd8 {[%clk 0:00:22]} 31. Qc6 {[%clk 0:00:38]}  Rd6 {[%clk 0:00:22]} 32. Qc4 {[%clk 0:00:32]}  Rd7 {[%clk 0:00:18]} 33. h3 {[%clk 0:00:26]}  g6 {[%clk 0:00:10]} 34. Qc8 {[%clk 0:00:12]}  Rd8 {[%clk 0:00:10]} 35. Qc2 {[%clk 0:00:12]}  Rd7 {[%clk 0:00:10]} 36. Ra6 {[%clk 0:00:11]}  h5 {[%clk 0:00:09]} 37. Qc4 {[%clk 0:00:07]}  Kh7 {[%clk 0:00:08]} 38. Qe2 {[%clk 0:00:05]}  Bg7 {[%clk 0:00:07]} 39. f3 {[%clk 0:00:06]}  Rc7 {[%clk 0:00:06]} 40. Ra2 {[%clk 0:00:05]}  Qd7 {[%clk 0:00:07]} 41. Rc2 {[%clk 0:00:05]}  Rxc2 {[%clk 0:00:06]} 42. Qxc2 {[%clk 0:00:06]}  Bd4 {[%clk 0:00:07]} 43. Bxd4 {[%clk 0:00:02]}  Qxd4+ {[%clk 0:00:08]} 44. Qf2 {[%clk 0:00:01]}  Qa1+ {[%clk 0:00:07]} 45. Kh2 {[%clk 0:00:02]}  a5 {[%clk 0:00:07]} 46. f4 {[%clk 0:00:02]}  a4 {[%clk 0:00:07]} 47. f5 {[%clk 0:00:02]}  Qe5+ {[%clk 0:00:07]} 48. Kg1 {[%clk 0:00:01]}  gxf5 {[%clk 0:00:07]} 49. exf5 {[%clk 0:00:01]}  a3 {[%clk 0:00:08]} 50. f6 {[%clk 0:00:01]}  Kg6 {[%clk 0:00:07]} 51. g4 {[%clk 0:00:01]}  hxg4 {[%clk 0:00:07]} 52. hxg4 {[%clk 0:00:02]}  Qa1+ {[%clk 0:00:05]} 53. Kg2 {[%clk 0:00:00]}  Qb2 {[%clk 0:00:06]} 0-1

[Event "November 21 Early 2023"]
[Site "https://www.chess.com"]
[Date "2023.11.21"]
[Round "7"]
[White "Vlassov, Nikolai"]
[Black "Fier, Alexandr"]
[Result "1-0"]
[Board "51"]
[TimeControl "180+1"]
[WhiteFideId "4103360"]
[BlackFideId "2107139"]
[WhiteElo "2324"]
[BlackElo "2578"]
[WhiteTeam "FID"]
[BlackTeam "BRA"]
[WhiteClock "0:00:48"]
[BlackClock "0:02:28"]

1. e4 {[%clk 0:03:00]}  Nf6 {[%clk 0:02:53]} 2. e5 {[%clk 0:03:00]}  Nd5 {[%clk 0:02:53]} 3. d4 {[%clk 0:03:00]}  d6 {[%clk 0:02:53]} 4. c4 {[%clk 0:03:01]}  Nb6 {[%clk 0:02:54]} 5. f4 {[%clk 0:03:01]}  dxe5 {[%clk 0:02:52]} 6. fxe5 {[%clk 0:03:01]}  c5 {[%clk 0:02:52]} 7. d5 {[%clk 0:02:59]}  e6 {[%clk 0:02:51]} 8. Nc3 {[%clk 0:02:50]}  exd5 {[%clk 0:02:51]} 9. cxd5 {[%clk 0:02:50]}  c4 {[%clk 0:02:52]} 10. Nf3 {[%clk 0:02:46]}  Bc5 {[%clk 0:02:50]} 11. Bg5 {[%clk 0:02:30]}  f6 {[%clk 0:02:44]} 12. exf6 {[%clk 0:02:02]}  gxf6 {[%clk 0:02:44]} 13. Bh4 {[%clk 0:01:34]}  Bf5 {[%clk 0:02:41]} 14. Nd4 {[%clk 0:01:24]}  Qe7+ {[%clk 0:02:39]} 15. Be2 {[%clk 0:01:22]}  Bd3 {[%clk 0:02:40]} 16. Ne6 {[%clk 0:01:14]}  Bb4 {[%clk 0:02:36]} 17. O-O {[%clk 0:01:02]}  Bxc3 {[%clk 0:02:34]} 18. Bxd3 {[%clk 0:00:55]}  cxd3 {[%clk 0:02:29]} 19. bxc3 {[%clk 0:00:54]}  Nxd5 {[%clk 0:02:29]} 20. Qh5+ {[%clk 0:00:53]}  Kd7 {[%clk 0:02:28]} 21. Qxd5+ {[%clk 0:00:53]}  Qd6 {[%clk 0:02:29]} 22. Nc5+ {[%clk 0:00:49]}  Kc7 {[%clk 0:02:28]} 23. Bg3 {[%clk 0:00:48]} 1-0

[Event "November 21 Early 2023"]
[Site "https://www.chess.com"]
[Date "2023.11.21"]
[Round "7"]
[White "Predator0608"]
[Black "Samunenkov, Ihor"]
[Result "0-1"]
[Board "54"]
[TimeControl "180+1"]
[BlackFideId "14187086"]
[WhiteElo "2597"]
[BlackElo "2473"]
[BlackTeam "UKR"]
[WhiteClock "0:00:03"]
[BlackClock "0:00:04"]

1. e4 {[%clk 0:03:00]}  c6 {[%clk 0:02:59]} 2. d4 {[%clk 0:03:00]}  d5 {[%clk 0:02:59]} 3. f3 {[%clk 0:03:01]}  e6 {[%clk 0:02:58]} 4. Nc3 {[%clk 0:03:01]}  Qb6 {[%clk 0:02:59]} 5. f4 {[%clk 0:02:59]}  dxe4 {[%clk 0:02:42]} 6. Nxe4 {[%clk 0:02:58]}  Nd7 {[%clk 0:02:42]} 7. Nf3 {[%clk 0:02:54]}  Ngf6 {[%clk 0:02:40]} 8. Nf2 {[%clk 0:02:43]}  c5 {[%clk 0:02:37]} 9. c3 {[%clk 0:02:41]}  cxd4 {[%clk 0:02:32]} 10. Nxd4 {[%clk 0:02:41]}  Be7 {[%clk 0:02:31]} 11. Be2 {[%clk 0:02:35]}  O-O {[%clk 0:02:27]} 12. O-O {[%clk 0:02:34]}  Bc5 {[%clk 0:01:55]} 13. Bf3 {[%clk 0:02:28]}  Rd8 {[%clk 0:01:40]} 14. Nb3 {[%clk 0:01:38]}  Ne5 {[%clk 0:01:32]} 15. Qe2 {[%clk 0:00:41]}  Nxf3+ {[%clk 0:01:30]} 16. Qxf3 {[%clk 0:00:41]}  Bf8 {[%clk 0:01:30]} 17. Be3 {[%clk 0:00:41]}  Qc7 {[%clk 0:01:06]} 18. Bd4 {[%clk 0:00:39]}  Bd7 {[%clk 0:00:42]} 19. Be5 {[%clk 0:00:33]}  Qb6 {[%clk 0:00:40]} 20. Bd4 {[%clk 0:00:29]}  Qc7 {[%clk 0:00:36]} 21. Be5 {[%clk 0:00:27]}  Qb6 {[%clk 0:00:36]} 22. Bd4 {[%clk 0:00:27]}  Qc6 {[%clk 0:00:37]} 23. Qg3 {[%clk 0:00:27]}  Kh8 {[%clk 0:00:27]} 24. Nd3 {[%clk 0:00:28]}  Be8 {[%clk 0:00:22]} 25. Ne5 {[%clk 0:00:28]}  Qe4 {[%clk 0:00:19]} 26. Rae1 {[%clk 0:00:25]}  Qf5 {[%clk 0:00:19]} 27. Qh4 {[%clk 0:00:23]}  Qh5 {[%clk 0:00:17]} 28. Qg3 {[%clk 0:00:16]}  Rac8 {[%clk 0:00:14]} 29. Bxa7 {[%clk 0:00:13]}  Nd5 {[%clk 0:00:10]} 30. Bd4 {[%clk 0:00:14]}  f6 {[%clk 0:00:10]} 31. Nf3 {[%clk 0:00:13]}  Bf7 {[%clk 0:00:08]} 32. Re2 {[%clk 0:00:14]}  Ra8 {[%clk 0:00:08]} 33. Rfe1 {[%clk 0:00:14]}  Rxa2 {[%clk 0:00:08]} 34. Nc1 {[%clk 0:00:15]}  Ra1 {[%clk 0:00:07]} 35. Kf2 {[%clk 0:00:13]}  Rda8 {[%clk 0:00:06]} 36. Nd3 {[%clk 0:00:12]}  Qf5 {[%clk 0:00:05]} 37. Nh4 {[%clk 0:00:09]}  Qh5 {[%clk 0:00:03]} 38. Nc5 {[%clk 0:00:08]}  Rxe1 {[%clk 0:00:03]} 39. Rxe1 {[%clk 0:00:09]}  Re8 {[%clk 0:00:03]} 40. Re2 {[%clk 0:00:09]}  b6 {[%clk 0:00:03]} 41. Ne4 {[%clk 0:00:09]}  e5 {[%clk 0:00:03]} 42. fxe5 {[%clk 0:00:09]}  fxe5 {[%clk 0:00:04]} 43. Be3 {[%clk 0:00:09]}  Be7 {[%clk 0:00:04]} 44. Nf3 {[%clk 0:00:09]}  Nxe3 {[%clk 0:00:03]} 45. Rxe3 {[%clk 0:00:10]}  Bg6 {[%clk 0:00:03]} 46. Qxe5 {[%clk 0:00:08]}  Bh4+ {[%clk 0:00:03]} 47. Ke2 {[%clk 0:00:07]}  Rxe5 {[%clk 0:00:03]} 48. g4 {[%clk 0:00:04]}  Qxg4 {[%clk 0:00:03]} 49. h3 {[%clk 0:00:04]}  Qh5 {[%clk 0:00:03]} 50. Ng3 {[%clk 0:00:04]}  Rxe3+ {[%clk 0:00:03]} 51. Kxe3 {[%clk 0:00:04]}  Bxg3 {[%clk 0:00:04]} 52. Ne5 {[%clk 0:00:03]}  Qxe5+ {[%clk 0:00:04]} 0-1

[Event "November 21 Early 2023"]
[Site "https://www.chess.com"]
[Date "2023.11.21"]
[Round "7"]
[White "NovozhilovSemen"]
[Black "Thorfinnsson, Bjorn"]
[Result "1-0"]
[Board "56"]
[TimeControl "180+1"]
[BlackFideId "2300982"]
[WhiteElo "2752"]
[BlackElo "2381"]
[BlackTeam "ISL"]
[WhiteClock "0:01:26"]
[BlackClock "0:00:06"]

1. d4 {[%clk 0:03:00]}  d5 {[%clk 0:02:59]} 2. c4 {[%clk 0:03:00]}  e6 {[%clk 0:02:59]} 3. Nf3 {[%clk 0:03:00]}  Be7 {[%clk 0:02:59]} 4. Qc2 {[%clk 0:02:59]}  Nf6 {[%clk 0:02:59]} 5. g3 {[%clk 0:02:59]}  c6 {[%clk 0:02:59]} 6. Bg2 {[%clk 0:02:59]}  O-O {[%clk 0:02:59]} 7. O-O {[%clk 0:03:00]}  b6 {[%clk 0:02:57]} 8. Nbd2 {[%clk 0:03:00]}  Bb7 {[%clk 0:02:56]} 9. e4 {[%clk 0:03:01]}  dxe4 {[%clk 0:02:55]} 10. Nxe4 {[%clk 0:03:02]}  Nxe4 {[%clk 0:02:56]} 11. Qxe4 {[%clk 0:03:02]}  Nd7 {[%clk 0:02:56]} 12. Rd1 {[%clk 0:03:03]}  Qc8 {[%clk 0:02:52]} 13. Ne5 {[%clk 0:02:59]}  Rd8 {[%clk 0:02:51]} 14. Be3 {[%clk 0:02:54]}  Nxe5 {[%clk 0:02:41]} 15. dxe5 {[%clk 0:02:54]}  Qc7 {[%clk 0:02:39]} 16. h4 {[%clk 0:02:53]}  Rxd1+ {[%clk 0:02:37]} 17. Rxd1 {[%clk 0:02:54]}  Rd8 {[%clk 0:02:37]} 18. Rc1 {[%clk 0:02:47]}  Rd7 {[%clk 0:01:47]} 19. c5 {[%clk 0:02:29]}  bxc5 {[%clk 0:01:45]} 20. Bxc5 {[%clk 0:02:25]}  Bxc5 {[%clk 0:01:45]} 21. Rxc5 {[%clk 0:02:25]}  Rd5 {[%clk 0:01:44]} 22. Qe3 {[%clk 0:02:21]}  Rxc5 {[%clk 0:01:21]} 23. Qxc5 {[%clk 0:02:21]}  Qb6 {[%clk 0:01:21]} 24. Qe7 {[%clk 0:02:16]}  g6 {[%clk 0:01:20]} 25. h5 {[%clk 0:02:14]}  gxh5 {[%clk 0:01:19]} 26. Bf3 {[%clk 0:02:02]}  Qxb2 {[%clk 0:00:14]} 27. Bxh5 {[%clk 0:01:52]}  Qb1+ {[%clk 0:00:14]} 28. Kg2 {[%clk 0:01:52]}  c5+ {[%clk 0:00:12]} 29. f3 {[%clk 0:01:48]}  Qc2+ {[%clk 0:00:11]} 30. Kh3 {[%clk 0:01:48]}  Qf5+ {[%clk 0:00:11]} 31. Kh4 {[%clk 0:01:45]}  Bxf3 {[%clk 0:00:08]} 32. Qd8+ {[%clk 0:01:45]}  Kg7 {[%clk 0:00:09]} 33. Qf6+ {[%clk 0:01:46]}  Qxf6+ {[%clk 0:00:09]} 34. exf6+ {[%clk 0:01:47]}  Kxf6 {[%clk 0:00:09]} 35. Bxf3 {[%clk 0:01:48]}  Ke5 {[%clk 0:00:10]} 36. Kg5 {[%clk 0:01:47]}  f5 {[%clk 0:00:10]} 37. Bd1 {[%clk 0:01:44]}  c4 {[%clk 0:00:09]} 38. Bc2 {[%clk 0:01:44]}  c3 {[%clk 0:00:09]} 39. Bb1 {[%clk 0:01:33]}  a6 {[%clk 0:00:09]} 40. a3 {[%clk 0:01:33]}  a5 {[%clk 0:00:09]} 41. a4 {[%clk 0:01:33]}  Kd4 {[%clk 0:00:10]} 42. Kf6 {[%clk 0:01:33]}  Ke3 {[%clk 0:00:09]} 43. Kxe6 {[%clk 0:01:31]}  Kf3 {[%clk 0:00:09]} 44. Bxf5 {[%clk 0:01:29]}  Kxg3 {[%clk 0:00:09]} 45. Bxh7 {[%clk 0:01:26]}  Kf2 {[%clk 0:00:09]} 46. Kd5 {[%clk 0:01:26]}  Ke3 {[%clk 0:00:09]} 47. Kc4 {[%clk 0:01:26]}  Kd2 {[%clk 0:00:08]} 48. Kb3 {[%clk 0:01:26]}  c2 {[%clk 0:00:08]} 49. Bxc2 {[%clk 0:01:26]}  Ke3 {[%clk 0:00:06]} 50. Kc4 {[%clk 0:01:26]} 1-0

[Event "November 21 Early 2023"]
[Site "https://www.chess.com"]
[Date "2023.11.21"]
[Round "7"]
[White "Nagy, Gabor"]
[Black "Statham_l3"]
[Result "1-0"]
[Board "57"]
[TimeControl "180+1"]
[WhiteFideId "737119"]
[WhiteElo "2505"]
[BlackElo "2585"]
[WhiteTeam "HUN"]
[WhiteClock "0:01:12"]
[BlackClock "0:00:00"]

1. d4 {[%clk 0:02:54]}  e6 {[%clk 0:02:57]} 2. Nc3 {[%clk 0:02:53]}  Nf6 {[%clk 0:02:52]} 3. Bf4 {[%clk 0:02:48]}  Bb4 {[%clk 0:02:50]} 4. e3 {[%clk 0:02:47]}  d5 {[%clk 0:02:49]} 5. Ne2 {[%clk 0:02:45]}  c5 {[%clk 0:02:46]} 6. a3 {[%clk 0:02:44]}  Bxc3+ {[%clk 0:02:45]} 7. Nxc3 {[%clk 0:02:43]}  c4 {[%clk 0:02:36]} 8. e4 {[%clk 0:02:36]}  O-O {[%clk 0:02:18]} 9. e5 {[%clk 0:02:32]}  Nfd7 {[%clk 0:02:17]} 10. Be2 {[%clk 0:02:30]}  f6 {[%clk 0:02:10]} 11. exf6 {[%clk 0:02:29]}  Qxf6 {[%clk 0:02:09]} 12. Bg3 {[%clk 0:02:30]}  Nc6 {[%clk 0:02:06]} 13. O-O {[%clk 0:02:14]}  Nxd4 {[%clk 0:02:00]} 14. Re1 {[%clk 0:02:11]}  Nf5 {[%clk 0:01:45]} 15. Bf4 {[%clk 0:01:56]}  a6 {[%clk 0:01:32]} 16. Bf1 {[%clk 0:01:50]}  Kh8 {[%clk 0:01:17]} 17. Qd2 {[%clk 0:01:49]}  b5 {[%clk 0:01:12]} 18. Bg5 {[%clk 0:01:47]}  Qg6 {[%clk 0:01:11]} 19. Ne2 {[%clk 0:01:45]}  h6 {[%clk 0:00:54]} 20. Bf4 {[%clk 0:01:42]}  Bb7 {[%clk 0:00:47]} 21. Rad1 {[%clk 0:01:41]}  e5 {[%clk 0:00:45]} 22. Bg3 {[%clk 0:01:36]}  h5 {[%clk 0:00:44]} 23. h4 {[%clk 0:01:31]}  Rae8 {[%clk 0:00:40]} 24. b3 {[%clk 0:01:27]}  Nf6 {[%clk 0:00:36]} 25. Qg5 {[%clk 0:01:22]}  Qh7 {[%clk 0:00:28]} 26. f3 {[%clk 0:01:18]}  d4 {[%clk 0:00:17]} 27. bxc4 {[%clk 0:01:16]}  bxc4 {[%clk 0:00:18]} 28. Bf2 {[%clk 0:01:16]}  Qh6 {[%clk 0:00:14]} 29. Ng3 {[%clk 0:01:13]}  Nxg3 {[%clk 0:00:09]} 30. Qxh6+ {[%clk 0:01:13]}  gxh6 {[%clk 0:00:09]} 31. Bxg3 {[%clk 0:01:14]}  Nd7 {[%clk 0:00:04]} 32. Bxc4 {[%clk 0:01:14]}  Rc8 {[%clk 0:00:03]} 33. Be6 {[%clk 0:01:12]}  Rxc2 {[%clk 0:00:02]} 34. Bxd7 {[%clk 0:01:12]}  Bxf3 {[%clk 0:00:00]} 35. Bxe5+ {[%clk 0:01:12]} 1-0

[Event "November 21 Early 2023"]
[Site "https://www.chess.com"]
[Date "2023.11.21"]
[Round "7"]
[White "Kassimov, Baurzhan"]
[Black "Shoker, Samy"]
[Result "0-1"]
[Board "62"]
[TimeControl "180+1"]
[WhiteFideId "13704800"]
[BlackFideId "627143"]
[WhiteElo "2220"]
[BlackElo "2475"]
[WhiteTeam "KAZ"]
[BlackTeam "EGY"]
[WhiteClock "0:00:00"]
[BlackClock "0:01:41"]

1. c4 {[%clk 0:01:09]}  Nf6 {[%clk 0:02:57]} 2. Nc3 {[%clk 0:01:09]}  d6 {[%clk 0:02:58]} 3. g3 {[%clk 0:01:10]}  g6 {[%clk 0:02:58]} 4. Bg2 {[%clk 0:01:11]}  Bg7 {[%clk 0:02:58]} 5. Nf3 {[%clk 0:01:11]}  O-O {[%clk 0:02:59]} 6. O-O {[%clk 0:01:12]}  c6 {[%clk 0:03:00]} 7. d4 {[%clk 0:01:11]}  Nbd7 {[%clk 0:03:00]} 8. e4 {[%clk 0:01:11]}  e5 {[%clk 0:03:01]} 9. h3 {[%clk 0:01:12]}  exd4 {[%clk 0:02:58]} 10. Nxd4 {[%clk 0:01:12]}  Re8 {[%clk 0:02:58]} 11. Be3 {[%clk 0:01:10]}  a6 {[%clk 0:02:56]} 12. Qc2 {[%clk 0:01:07]}  Qe7 {[%clk 0:02:52]} 13. Rfe1 {[%clk 0:01:05]}  Rb8 {[%clk 0:02:52]} 14. Rad1 {[%clk 0:01:04]}  c5 {[%clk 0:02:50]} 15. Nde2 {[%clk 0:01:02]}  b5 {[%clk 0:02:51]} 16. b3 {[%clk 0:00:59]}  bxc4 {[%clk 0:02:50]} 17. bxc4 {[%clk 0:01:00]}  Bb7 {[%clk 0:02:45]} 18. Nd5 {[%clk 0:00:56]}  Bxd5 {[%clk 0:02:42]} 19. exd5 {[%clk 0:00:57]}  Qd8 {[%clk 0:02:39]} 20. Qa4 {[%clk 0:00:38]}  Rb4 {[%clk 0:02:15]} 21. Qxa6 {[%clk 0:00:32]}  Qb8 {[%clk 0:02:10]} 22. Bf4 {[%clk 0:00:30]}  Ne5 {[%clk 0:02:07]} 23. Nc3 {[%clk 0:00:30]}  Nfd7 {[%clk 0:02:02]} 24. Nb5 {[%clk 0:00:28]}  Bf8 {[%clk 0:01:57]} 25. a3 {[%clk 0:00:12]}  Rxc4 {[%clk 0:01:50]} 26. Bxe5 {[%clk 0:00:06]}  Nxe5 {[%clk 0:01:43]} 27. Nxd6 {[%clk 0:00:07]}  Qxd6 {[%clk 0:01:42]} 28. Qxc4 {[%clk 0:00:03]}  Nxc4 {[%clk 0:01:43]} 29. Rxe8 {[%clk 0:00:04]}  Kg7 {[%clk 0:01:41]} 30. a4 {[%clk 0:00:04]}  Qa6 {[%clk 0:01:41]} 31. Bf1 {[%clk 0:00:00]}  Qxa4 {[%clk 0:01:41]} 0-1

[Event "November 21 Early 2023"]
[Site "https://www.chess.com"]
[Date "2023.11.21"]
[Round "7"]
[White "Andriasian, Zaven"]
[Black "Klukin, Kirill"]
[Result "0-1"]
[Board "65"]
[TimeControl "180+1"]
[WhiteFideId "13302000"]
[BlackFideId "24199273"]
[WhiteElo "2624"]
[BlackElo "2344"]
[WhiteTeam "ARM"]
[BlackTeam "RUS"]
[WhiteClock "0:01:48"]
[BlackClock "0:01:09"]

1. e4 {[%clk 0:03:00]}  c5 {[%clk 0:02:59]} 2. Nc3 {[%clk 0:02:58]}  g6 {[%clk 0:02:59]} 3. Nf3 {[%clk 0:02:57]}  Bg7 {[%clk 0:02:59]} 4. d4 {[%clk 0:02:57]}  cxd4 {[%clk 0:02:59]} 5. Nxd4 {[%clk 0:02:58]}  Nc6 {[%clk 0:03:00]} 6. Be3 {[%clk 0:02:57]}  Nf6 {[%clk 0:03:00]} 7. Nb3 {[%clk 0:02:55]}  O-O {[%clk 0:03:01]} 8. Be2 {[%clk 0:02:55]}  d6 {[%clk 0:03:00]} 9. O-O {[%clk 0:02:55]}  a6 {[%clk 0:03:01]} 10. Re1 {[%clk 0:02:55]}  b5 {[%clk 0:03:01]} 11. a3 {[%clk 0:02:54]}  Bb7 {[%clk 0:03:01]} 12. Rf1 {[%clk 0:02:54]}  Rc8 {[%clk 0:03:01]} 13. Re1 {[%clk 0:02:54]}  Ne5 {[%clk 0:02:59]} 14. f3 {[%clk 0:02:53]}  Nc4 {[%clk 0:03:00]} 15. Bxc4 {[%clk 0:02:53]}  Rxc4 {[%clk 0:03:00]} 16. Qd2 {[%clk 0:02:53]}  Qc7 {[%clk 0:02:51]} 17. Rad1 {[%clk 0:02:53]}  Rc8 {[%clk 0:02:51]} 18. Nd4 {[%clk 0:02:50]}  e6 {[%clk 0:02:27]} 19. Nde2 {[%clk 0:02:48]}  d5 {[%clk 0:02:26]} 20. exd5 {[%clk 0:02:44]}  Nxd5 {[%clk 0:02:23]} 21. Nxd5 {[%clk 0:02:44]}  Bxd5 {[%clk 0:02:24]} 22. c3 {[%clk 0:02:45]}  a5 {[%clk 0:02:21]} 23. Bd4 {[%clk 0:02:42]}  e5 {[%clk 0:01:59]} 24. Be3 {[%clk 0:02:40]}  Be6 {[%clk 0:01:59]} 25. Bh6 {[%clk 0:02:28]}  b4 {[%clk 0:01:56]} 26. Bxg7 {[%clk 0:02:27]}  Kxg7 {[%clk 0:01:55]} 27. axb4 {[%clk 0:02:27]}  axb4 {[%clk 0:01:56]} 28. cxb4 {[%clk 0:02:27]}  Qb6+ {[%clk 0:01:56]} 29. Kh1 {[%clk 0:02:27]}  Rc2 {[%clk 0:01:53]} 30. Qg5 {[%clk 0:02:27]}  f6 {[%clk 0:01:48]} 31. Qh4 {[%clk 0:02:27]}  Rxb2 {[%clk 0:01:47]} 32. h3 {[%clk 0:02:19]}  Rcc2 {[%clk 0:01:43]} 33. Qe4 {[%clk 0:02:05]}  Bf5 {[%clk 0:01:33]} 34. Qxc2 {[%clk 0:02:04]}  Rxc2 {[%clk 0:01:31]} 35. Ng3 {[%clk 0:02:04]}  Qxb4 {[%clk 0:01:30]} 36. Rf1 {[%clk 0:01:57]}  Qh4 {[%clk 0:01:28]} 37. Nxf5+ {[%clk 0:01:55]}  gxf5 {[%clk 0:01:29]} 38. Rd7+ {[%clk 0:01:55]}  Kg6 {[%clk 0:01:29]} 39. Rd8 {[%clk 0:01:56]}  Kf7 {[%clk 0:01:26]} 40. Rd7+ {[%clk 0:01:56]}  Ke6 {[%clk 0:01:21]} 41. Rfd1 {[%clk 0:01:56]}  f4 {[%clk 0:01:22]} 42. Rg7 {[%clk 0:01:55]}  Re2 {[%clk 0:01:16]} 43. Kh2 {[%clk 0:01:52]}  Re1 {[%clk 0:01:15]} 44. Rxe1 {[%clk 0:01:52]}  Qxe1 {[%clk 0:01:15]} 45. Rxh7 {[%clk 0:01:53]}  Qg3+ {[%clk 0:01:14]} 46. Kh1 {[%clk 0:01:53]}  f5 {[%clk 0:01:13]} 47. Rh6+ {[%clk 0:01:51]}  Kd5 {[%clk 0:01:13]} 48. Rh5 {[%clk 0:01:52]}  Qg6 {[%clk 0:01:11]} 49. Rh8 {[%clk 0:01:52]}  Kd4 {[%clk 0:01:11]} 50. Rd8+ {[%clk 0:01:51]}  Ke3 {[%clk 0:01:11]} 51. Rd1 {[%clk 0:01:51]}  e4 {[%clk 0:01:11]} 52. Rf1 {[%clk 0:01:50]}  Ke2 {[%clk 0:01:11]} 53. Kg1 {[%clk 0:01:51]}  Qb6+ {[%clk 0:01:09]} 54. Kh2 {[%clk 0:01:48]}  Kxf1 {[%clk 0:01:09]} 0-1